bitfinex/quotes_BTCUSD_20250331
["timestamp","ask_amount","ask_price","bid_price","bid_amount"]
[1743432491062,0.03358484,83501.0,83500.0,2.001]
[1743432491930,0.4561887,83501.0,83500.0,2.0]
[1743432492147,0.7076817,83501.0,83500.0,2.0]
[1743432492345,0.72222255,83501.0,83500.0,2.001]
[1743432492774,0.77012255,83501.0,83500.0,2.001]
[1743432493180,0.85302255,83501.0,83500.0,2.001]
[1743432493583,0.85302255,83501.0,83500.0,2.0]
[1743432493785,0.85302255,83501.0,83500.0,2.002]
[1743432493985,1.26642255,83501.0,83500.0,2.003]
[1743432494221,1.28435363,83501.0,83500.0,2.002]
[1743432494442,1.3217029,83501.0,83500.0,2.002]
[1743432494893,1.3217029,83501.0,83500.0,2.0]
[1743432495141,1.2268279,83501.0,83500.0,2.0]
[1743432495353,1.4366429,83501.0,83500.0,2.0]
[1743432495547,1.4366429,83501.0,83500.0,1.96249262]
[1743432495548,1.38136255,83501.0,83500.0,1.96249262]
[1743432496735,1.38136255,83501.0,83500.0,1.96282902]
[1743432497326,1.4187006,83501.0,83500.0,1.96282902]
[1743432497553,1.38136255,83501.0,83500.0,1.96282902]
[1743432499569,1.41869841,83501.0,83500.0,1.96282902]
[1743432499983,1.41865841,83501.0,83500.0,1.96282902]
[1743432500594,1.24161978,83501.0,83500.0,1.96282902]
[1743432500939,1.24161978,83501.0,83500.0,2.21432502]
[1743432500940,0.05434621,83501.0,83500.0,2.21432502]
[1743432501140,0.05434621,83501.0,83500.0,1.96282902]
[1743432501295,0.05434621,83501.0,83500.0,2.21432502]
[1743432501506,0.03558484,83501.0,83500.0,2.21432502]
[1743432501782,0.03558484,83501.0,83500.0,1.96282902]
[1743432501981,0.03358484,83501.0,83500.0,2.20234902]
[1743432502287,0.03358484,83501.0,83500.0,2.21432502]
[1743432502477,0.03358484,83501.0,83500.0,2.21532502]
[1743432503055,0.03358484,83501.0,83500.0,2.21732502]
[1743432503685,0.03358484,83501.0,83500.0,2.33992888]
[1743432503925,0.03358484,83501.0,83500.0,2.74852888]
[1743432504167,0.03358484,83501.0,83500.0,3.02158888]
[1743432504373,0.03358484,83501.0,83500.0,3.06958888]
[1743432504578,0.03358484,83501.0,83500.0,3.06758888]
[1743432504987,0.01219992,83501.0,83500.0,3.06858888]
[1743432505192,0.01219992,83501.0,83500.0,2.75122502]
[1743432505627,0.01219992,83501.0,83500.0,2.75022502]
[1743432505830,0.01319992,83501.0,83500.0,1.96582902]
[1743432506006,0.01319992,83501.0,83500.0,2.21732502]
[1743432506437,0.01219992,83501.0,83500.0,2.21532502]
[1743432506762,0.01319992,83501.0,83500.0,2.21732502]
[1743432507179,0.01219992,83501.0,83500.0,2.21532502]
[1743432507379,0.03458381,83501.0,83500.0,2.21532502]
[1743432507586,0.03458381,83501.0,83500.0,1.96482902]
[1743432507793,0.03558381,83501.0,83500.0,1.96582902]
[1743432508603,0.03575201,83501.0,83500.0,2.21732502]
[1743432509383,0.03475201,83501.0,83500.0,2.21632502]
[1743432509585,0.03375201,83501.0,83500.0,1.96282902]
[1743432509787,0.03375201,83501.0,83500.0,1.96482902]
[1743432509970,0.03375201,83501.0,83500.0,2.21732502]
[1743432511238,0.03375201,83501.0,83500.0,2.21532502]
[1743432511444,0.03375201,83501.0,83500.0,2.29272502]
[1743432511660,0.03375201,83501.0,83500.0,2.29372502]
[1743432512235,0.03375201,83501.0,83500.0,2.41632888]
[1743432512456,0.03375201,83501.0,83500.0,2.41532888]
[1743432512910,0.01892361,83519.0,83518.0,0.251442]
[1743432512911,0.0001682,83519.0,83518.0,0.251442]
[1743432513333,2e-07,83519.0,83518.0,0.90974586]
[1743432513534,2e-07,83519.0,83518.0,1.20974586]
[1743432514082,0.0010002,83519.0,83518.0,1.21174586]
[1743432514675,2e-07,83519.0,83518.0,1.20974586]
[1743432514891,0.0010002,83519.0,83518.0,1.21074586]
[1743432515097,2e-07,83519.0,83518.0,1.21074586]
[1743432515299,0.0001682,83534.0,83533.0,0.250397]
[1743432515494,0.00026841,83534.0,83533.0,0.38216368]
[1743432515935,0.00026841,83534.0,83533.0,0.46096368]
[1743432516552,0.00226841,83534.0,83533.0,0.46696368]
[1743432516767,4.1e-07,83534.0,83533.0,0.46696368]
[1743432517115,1.0,83545.0,83544.0,0.251363]
[1743432517316,1.0,83545.0,83544.0,0.37396686]
[1743432517530,1.0,83545.0,83544.0,0.39232942]
[1743432517729,1.0,83545.0,83544.0,0.26972556]
[1743432518879,1.0,83545.0,83544.0,0.26872556]
[1743432519412,1.001,83545.0,83544.0,0.254363]
[1743432520241,1.002,83545.0,83544.0,0.259363]
[1743432521416,1.0021685,83545.0,83544.0,0.259363]
[1743432524054,1.0021685,83545.0,83544.0,0.261363]
[1743432524664,1.3021685,83545.0,83544.0,0.01]
[1743432525299,1.32091687,83545.0,83544.0,0.01]
[1743432525778,1.45706158,83545.0,83544.0,0.005]
[1743432526005,1.0011685,83545.0,83544.0,0.005]
[1743432526408,1.0011685,83545.0,83544.0,0.009]
[1743432526634,1.0001685,83545.0,83544.0,0.004]
[1743432526864,1.0001685,83545.0,83541.0,0.239402]
[1743432527079,1.0001685,83545.0,83544.0,0.007]
[1743432527286,1.0001685,83545.0,83544.0,0.256363]
[1743432527514,1.0001685,83545.0,83544.0,0.251363]
[1743432528537,1.01130329,83545.0,83544.0,0.251363]
[1743432528749,1.01230329,83545.0,83544.0,0.258363]
[1743432528950,1.01230329,83545.0,83544.0,0.255363]
[1743432529420,1.01230329,83545.0,83544.0,0.256363]
[1743432529592,1.01330329,83545.0,83544.0,0.261363]
[1743432531783,1.01168341,83545.0,83544.0,0.261363]
[1743432532723,1.01168341,83545.0,83544.0,0.01]
[1743432532848,1.01168341,83545.0,83544.0,0.021969]
[1743432533059,1.01168341,83545.0,83544.0,0.01]
[1743432533731,1.01168341,83545.0,83544.0,0.261363]
[1743432533929,1.01168341,83545.0,83544.0,0.2616998]
[1743432534307,1.03400613,83545.0,83544.0,0.2616998]
[1743432535074,1.03300613,83545.0,83544.0,0.2566998]
[1743432535583,1.03300613,83545.0,83544.0,0.2556998]
[1743432535717,1.03300613,83545.0,83544.0,0.2586998]
[1743432535920,1.01068341,83545.0,83544.0,0.0073368]
[1743432536749,1.01068341,83545.0,83544.0,0.2467308]
[1743432537289,1.01068341,83545.0,83544.0,0.0073368]
[1743432537831,1.01068341,83545.0,83544.0,0.2586998]
[1743432538678,1.00968341,83545.0,83544.0,0.2546998]
[1743432539049,1.01068341,83545.0,83544.0,0.2576998]
[1743432539686,1.00968341,83545.0,83544.0,0.2516998]
[1743432539847,1.01068341,83545.0,83544.0,0.2546998]
[1743432540056,1.01068341,83545.0,83544.0,0.2586998]
[1743432542359,1.00968341,83545.0,83544.0,0.2516998]
[1743432542563,1.00968341,83545.0,83544.0,0.2566998]
[1743432542764,1.01068341,83545.0,83544.0,0.2606998]
[1743432546327,1.01068341,83545.0,83544.0,0.0093368]
[1743432546634,1.01068341,83545.0,83544.0,0.2606998]
[1743432547377,1.31068341,83545.0,83544.0,0.0093368]
[1743432547576,1.34809114,83545.0,83544.0,0.0093368]
[1743432547776,1.34709114,83545.0,83544.0,0.2447308]
[1743432548021,1.04709114,83545.0,83544.0,0.2566998]
[1743432548220,1.07054132,83545.0,83544.0,0.2606998]
[1743432548429,1.03313359,83545.0,83544.0,0.2606998]
[1743432548608,1.03213359,83545.0,83544.0,0.2447308]
[1743432548810,1.03213359,83545.0,83544.0,0.2516998]
[1743432549061,1.03213359,83545.0,83539.0,0.239407]
[1743432549218,1.06954072,83545.0,83544.0,0.004]
[1743432549572,1.06953992,83545.0,83539.0,0.239407]
[1743432549847,1.03213359,83545.0,83540.0,0.239406]
[1743432550261,1.03213359,83545.0,83544.0,0.002]
[1743432550488,1.06954004,83545.0,83544.0,0.002]
[1743432550665,1.06954004,83545.0,83537.0,0.01197]
[1743432550872,0.04854124,83544.0,83536.0,0.239416]
[1743432551069,0.04854124,83544.0,83534.0,0.011971]
[1743432551070,0.01113479,83544.0,83543.0,0.251366]
[1743432551284,0.07099114,83544.0,83543.0,0.251366]
[1743432552655,0.37099114,83544.0,83543.0,0.002]
[1743432553081,0.37099114,83544.0,83543.0,0.241397]
[1743432553495,0.03358497,83544.0,83543.0,0.253366]
[1743432557729,0.01213479,83544.0,83543.0,0.241397]
[1743432557927,0.01213479,83544.0,83543.0,0.253366]
[1743432558146,0.01213479,83544.0,83543.0,0.2537028]
[1743432558345,0.01213479,83544.0,83543.0,0.2517028]
[1743432558818,0.01213479,83544.0,83543.0,0.2567028]
[1743432558965,0.01213479,83544.0,83543.0,0.2517028]
[1743432559370,0.01213479,83544.0,83543.0,0.2547028]
[1743432559837,0.01213479,83544.0,83543.0,0.2517028]
[1743432560000,0.01113479,83544.0,83543.0,0.2517028]
[1743432560289,0.01113479,83544.0,83543.0,0.2557028]
[1743432560589,0.03357528,83544.0,83543.0,0.2557028]
[1743432560758,0.03457528,83544.0,83543.0,0.2557028]
[1743432561314,0.03357528,83544.0,83543.0,0.2517028]
[1743432561541,0.03457528,83544.0,83543.0,0.2517028]
[1743432562011,0.03557528,83544.0,83543.0,0.2447338]
[1743432562210,0.03557528,83544.0,83536.0,0.01197]
[1743432562383,0.03557528,83544.0,83535.0,0.239419]
[1743432562801,0.02244049,83543.0,83534.0,0.251393]
[1743432563006,0.02244049,83543.0,83538.0,0.01197]
[1743432563192,0.02244049,83543.0,83539.0,0.01197]
[1743432563389,0.02244049,83543.0,83542.0,0.2394]
[1743432563620,0.02244049,83543.0,83542.0,0.25137]
[1743432564034,0.02244049,83543.0,83542.0,0.2394]
[1743432564234,0.001,83544.0,83542.0,0.2394]
[1743432564633,0.99854862,83545.0,83541.0,0.251367]
[1743432564879,0.001,83543.0,83540.0,0.239404]
[1743432565068,0.0122218,83543.0,83542.0,0.25137]
[1743432565227,0.0112218,83543.0,83542.0,0.25137]
[1743432566461,0.03366631,83543.0,83542.0,0.25137]
[1743432567204,0.03466631,83543.0,83542.0,0.25137]
[1743432567700,0.03466631,83543.0,83538.0,0.01197]
[1743432567701,0.03466631,83543.0,83534.0,0.011971]
[1743432567902,0.03466631,83543.0,83538.0,0.239411]
[1743432568111,0.03466631,83543.0,83537.0,0.239414]
[1743432568287,0.03466631,83543.0,83537.0,0.239409]
[1743432568427,0.0112218,83542.0,83537.0,0.239409]
[1743432568638,0.0112218,83542.0,83531.0,0.23943]
[1743432568837,0.03366631,83542.0,83534.0,0.011971]
[1743432569069,0.03366631,83542.0,83540.0,0.01197]
[1743432569265,0.03366631,83542.0,83541.0,0.239403]
[1743432569859,0.03366631,83542.0,83540.0,0.251374]
[1743432570065,0.03366631,83542.0,83540.0,0.239404]
[1743432570298,0.03366631,83542.0,83536.0,0.239412]
[1743432570505,0.03466631,83542.0,83535.0,0.0003368]
[1743432570929,0.03466631,83542.0,83540.0,0.239406]
[1743432571178,0.0112218,83541.0,83540.0,0.37397986]
[1743432571339,0.03366631,83541.0,83540.0,0.37397986]
[1743432572830,0.0112218,83541.0,83540.0,0.37397986]
[1743432574024,0.0112218,83541.0,83540.0,0.67397986]
[1743432574232,0.0122218,83541.0,83540.0,0.67397986]
[1743432574433,0.002,83541.0,83540.0,0.67397986]
[1743432574674,0.001,83541.0,83540.0,0.67397986]
[1743432575009,0.99854862,83545.0,83544.0,0.250363]
[1743432575209,0.99854862,83545.0,83544.0,0.37196686]
[1743432575544,1.00975897,83545.0,83544.0,0.37196686]
[1743432575768,1.00975897,83545.0,83544.0,0.37096686]
[1743432576143,1.00975897,83545.0,83544.0,0.37982926]
[1743432577592,1.01075897,83545.0,83544.0,0.38082926]
[1743432578050,1.01175897,83545.0,83544.0,0.38182926]
[1743432578963,1.01175897,83545.0,83544.0,0.0108624]
[1743432579167,1.0341714,83545.0,83544.0,0.2502564]
[1743432579366,1.0341714,83545.0,83544.0,0.2622254]
[1743432579572,1.0341714,83545.0,83544.0,0.2502564]
[1743432579794,1.0341714,83545.0,83544.0,0.2622254]
[1743432580179,1.0331714,83545.0,83544.0,0.2612254]
[1743432580625,1.0341714,83545.0,83544.0,0.2632254]
[1743432580984,1.0331714,83545.0,83544.0,0.2622254]
[1743432581182,1.0341714,83545.0,83544.0,0.2632254]
[1743432582152,1.0341714,83545.0,83544.0,0.003]
[1743432582356,1.0341714,83545.0,83544.0,0.254363]
[1743432582979,1.0341714,83545.0,83544.0,0.37696686]
[1743432583379,1.05210774,83545.0,83544.0,0.37696686]
[1743432585059,1.05210774,83545.0,83544.0,0.38585418]
[1743432585496,1.05210774,83545.0,83544.0,0.25128132]
[1743432585695,1.05210774,83545.0,83544.0,0.26325032]
[1743432587467,1.05210774,83545.0,83544.0,0.003]
[1743432587682,1.0341714,83545.0,83544.0,0.003]
[1743432588453,1.0331714,83545.0,83544.0,0.002]
[1743432589011,1.0331714,83545.0,83544.0,0.003]
[1743432589252,1.0331714,83545.0,83544.0,0.254363]
[1743432589692,1.0331714,83545.0,83544.0,0.38597739]
[1743432590126,1.0331714,83545.0,83544.0,0.79257739]
[1743432590127,1.0321714,83545.0,83544.0,0.79257739]
[1743432590334,1.0321714,83545.0,83544.0,0.87207739]
[1743432590508,1.0331714,83545.0,83544.0,0.87407739]
[1743432590709,1.01075897,83545.0,83544.0,0.87507739]
[1743432591010,1.00975897,83545.0,83544.0,0.87307739]
[1743432591407,0.99954862,83545.0,83544.0,0.87507739]
[1743432591914,0.99954862,83545.0,83544.0,0.87407739]
[1743432592089,0.99854862,83545.0,83544.0,0.87207739]
[1743432592293,0.99315358,83545.0,83544.0,0.87407739]
[1743432593698,0.99415358,83545.0,83544.0,0.87507739]
[1743432595207,7.8e-07,83555.0,83554.0,0.251334]
[1743432595408,7.8e-07,83555.0,83554.0,0.37393786]
[1743432596112,0.01120504,83555.0,83554.0,0.37393786]
[1743432596314,0.03361356,83555.0,83554.0,0.37393786]
[1743432596941,0.03461356,83555.0,83554.0,0.37593786]
[1743432597463,0.03361356,83555.0,83554.0,0.37393786]
[1743432597613,0.03461356,83555.0,83554.0,0.37593786]
[1743432597840,0.03561356,83555.0,83554.0,0.37793786]
[1743432598056,0.03461356,83555.0,83554.0,0.37593786]
[1743432598411,0.03461356,83555.0,83554.0,0.37793786]
[1743432598412,0.03561356,83555.0,83554.0,0.37793786]
[1743432598617,0.03561356,83555.0,83554.0,0.45413786]
[1743432599024,0.03561356,83555.0,83554.0,0.86273786]
[1743432599440,0.03561356,83555.0,83554.0,1.16273786]
[1743432599624,0.03461356,83555.0,83554.0,1.16073786]
[1743432600045,0.03461356,83555.0,83554.0,1.16273786]
[1743432600252,0.03561356,83555.0,83554.0,1.16473786]
[1743432600511,0.03461356,83555.0,83554.0,1.15873786]
[1743432600708,0.03478196,83555.0,83554.0,1.15873786]
[1743432600909,0.00216918,83555.0,83554.0,1.08453786]
[1743432601432,0.00316918,83555.0,83554.0,1.08853786]
[1743432602605,0.00216918,83555.0,83554.0,1.27913786]
[1743432603027,0.00316918,83555.0,83554.0,1.28213786]
[1743432603500,0.00016918,83555.0,83554.0,1.27713786]
[1743432603616,0.0001684,83583.0,83577.0,0.251265]
[1743432603822,0.00063318,83578.0,83577.0,0.37186886]
[1743432604235,1.8e-07,83578.0,83577.0,1.08046886]
[1743432604439,1.8e-07,83578.0,83577.0,1.09400971]
[1743432604638,1.8e-07,83578.0,83577.0,1.09900971]
[1743432604847,0.0001684,83583.0,83582.0,0.57078985]
[1743432605065,0.00030778,83583.0,83582.0,0.69339371]
[1743432605278,7.8e-07,83583.0,83582.0,1.10199371]
[1743432605500,1.8e-07,83585.0,83584.0,0.556244]
[1743432605737,1.8e-07,83585.0,83584.0,0.69238871]
[1743432606253,0.001,83620.0,83615.0,0.011959]
[1743432606548,0.00213933,83619.0,83618.0,0.251141]
[1743432606773,0.00213933,83619.0,83618.0,0.37374486]
[1743432607188,0.00213933,83619.0,83618.0,0.14274769]
[1743432607389,0.00213933,83619.0,83618.0,0.00918483]
[1743432607513,0.00213933,83619.0,83618.0,0.00818483]
[1743432607958,0.00213933,83619.0,83618.0,0.005]
[1743432608210,0.00213933,83619.0,83618.0,0.009]
[1743432608413,0.00213933,83619.0,83618.0,0.02731121]
[1743432608564,0.00213933,83619.0,83618.0,0.02231121]
[1743432608779,0.00313933,83619.0,83618.0,0.02731121]
[1743432608988,0.00313933,83619.0,83618.0,0.02331121]
[1743432609183,0.00413933,83619.0,83618.0,0.005]
[1743432610153,0.001,83601.0,83591.0,0.011963]
[1743432610394,0.001,83601.0,83592.0,0.36185986]
[1743432610586,0.001,83600.0,83592.0,0.12260386]
[1743432610992,0.001,83592.0,83571.0,0.251282]
[1743432611269,0.001,83587.0,83576.0,0.239301]
[1743432611473,0.001,83587.0,83579.0,0.239291]
[1743432611708,0.001,83587.0,83581.0,0.239288]
[1743432611892,0.001,83567.0,83558.0,0.047922]
[1743432612096,0.001,83567.0,83564.0,0.251301]
[1743432612301,0.3,83585.0,83571.0,0.239317]
[1743432612302,0.001,83573.0,83571.0,0.239317]
[1743432612498,0.001,83573.0,83565.0,0.36193686]
[1743432612682,0.001,83573.0,83567.0,0.239328]
[1743432613090,0.001,83573.0,83571.0,0.003]
[1743432613486,0.001,83572.0,83571.0,0.003]
[1743432614118,0.19544,83572.0,83571.0,0.003]
[1743432614326,0.001,83572.0,83558.0,0.02069643]
[1743432614533,0.001,83568.0,83560.0,0.011967]
[1743432614696,0.251217,83593.0,83558.0,0.02069643]
[1743432614697,0.001,83572.0,83571.0,0.256282]
[1743432614873,0.001,83572.0,83571.0,0.37888586]
[1743432615072,0.001,83572.0,83571.0,0.37388586]
[1743432615379,0.002,83572.0,83571.0,0.37888586]
[1743432616008,0.001,83592.0,83588.0,0.239267]
[1743432616162,0.001,83592.0,83571.0,0.12260386]
[1743432616163,0.001,83592.0,83583.0,0.239282]
[1743432616487,0.19444,83600.0,83579.0,0.011964]
[1743432616488,0.001,83590.0,83584.0,0.12260386]
[1743432616627,0.001,83590.0,83574.0,0.011965]
[1743432616843,0.001,83585.0,83581.0,0.011964]
[1743432617190,0.001,83585.0,83578.0,0.250259]
[1743432617426,0.001,83585.0,83578.0,0.12260386]
[1743432617647,0.001,83585.0,83578.0,0.36190086]
[1743432617866,0.001,83585.0,83575.0,0.011965]
[1743432617867,0.001,83579.0,83574.0,0.01852394]
[1743432618067,0.001,83579.0,83574.0,0.25797132]
[1743432618243,0.001,83579.0,83574.0,0.00013938]
[1743432618402,0.001,83579.0,83578.0,0.004]
[1743432618758,0.001,83579.0,83576.0,0.239302]
[1743432618962,0.0473,83579.0,83578.0,0.004]
[1743432619149,0.46885271,83579.0,83578.0,0.004]
[1743432619375,0.552271,83575.0,83574.0,0.00013938]
[1743432619582,1.18231571,83575.0,83574.0,0.00013938]
[1743432619813,1.23181571,83575.0,83574.0,0.00013938]
[1743432620013,0.98054471,83575.0,83574.0,0.00013938]
[1743432620665,0.99928911,83575.0,83574.0,0.00013938]
[1743432621293,1.25056011,83575.0,83574.0,0.00013938]
[1743432621510,1.25056011,83575.0,83574.0,0.00113938]
[1743432622115,1.25056011,83575.0,83574.0,0.00413938]
[1743432622845,1.32083722,83575.0,83574.0,0.00413938]
[1743432623223,1.25056011,83575.0,83574.0,0.00413938]
[1743432623605,1.44496011,83575.0,83574.0,0.00413938]
[1743432623974,1.44496011,83575.0,83574.0,0.00013938]
[1743432624180,1.44496011,83575.0,83544.0,0.0003368]
[1743432624181,0.3,83569.0,83544.0,0.0003368]
[1743432624313,0.06204085,83555.0,83544.0,0.0003368]
[1743432624517,0.82428519,83555.0,83544.0,0.0003368]
[1743432624699,0.56264471,83555.0,83544.0,0.0003368]
[1743432624901,0.44424761,83555.0,83544.0,0.0003368]
[1743432625143,0.36624761,83555.0,83544.0,0.0003368]
[1743432625378,0.36624761,83555.0,83548.0,0.011969]
[1743432625571,0.0475,83555.0,83545.0,0.23939]
[1743432625833,0.0475,83555.0,83554.0,0.0023368]
[1743432626211,0.001,83555.0,83554.0,0.0023368]
[1743432626840,0.26273418,83570.0,83554.0,0.0023368]
[1743432626841,0.001,83563.0,83556.0,0.011968]
[1743432627056,0.0461,83581.0,83554.0,0.13930214]
[1743432627057,0.001,83581.0,83574.0,0.251273]
[1743432627262,0.03597,83596.0,83574.0,0.251273]
[1743432627263,0.001,83585.0,83574.0,0.37387686]
[1743432627472,0.001,83590.0,83574.0,0.37387686]
[1743432627682,0.001,83585.0,83574.0,0.37387686]
[1743432628087,0.001,83585.0,83574.0,0.37187686]
[1743432628750,0.00113922,83575.0,83574.0,0.37487686]
[1743432628960,0.00113922,83575.0,83574.0,0.37287686]
[1743432629390,0.00073063,83575.0,83574.0,0.78147686]
[1743432629593,0.00032152,83575.0,83574.0,0.78147686]
[1743432630411,0.001,83585.0,83575.0,0.251268]
[1743432630671,0.001,83585.0,83578.0,0.239296]
[1743432630918,0.001,83585.0,83580.0,0.251253]
[1743432631117,0.001,83585.0,83581.0,0.011964]
[1743432631271,0.001,83585.0,83581.0,0.250251]
[1743432631502,0.001,83585.0,83578.0,0.12160386]
[1743432631841,0.001,83585.0,83584.0,0.011964]
[1743432632056,0.001,83585.0,83584.0,0.251244]
[1743432632265,0.001,83585.0,83584.0,0.26125455]
[1743432632465,0.001,83585.0,83584.0,0.01001055]
[1743432632621,0.002,83585.0,83584.0,0.01001055]
[1743432633223,0.0011683,83585.0,83584.0,0.01001055]
[1743432633597,0.0021683,83585.0,83584.0,0.01001055]
[1743432633800,0.0021683,83585.0,83581.0,0.019964]
[1743432634022,0.4134,83637.0,83586.0,0.1204]
[1743432634234,0.4134,83637.0,83584.0,0.12260386]
[1743432634235,0.011944,83718.0,83678.0,0.005]
[1743432634453,0.011943,83725.0,83678.0,2.28290379]
[1743432634665,0.035926,83728.0,83700.0,0.005]
[1743432634875,0.035926,83728.0,83717.0,0.238898]
[1743432635091,0.002,83739.0,83738.0,0.011942]
[1743432635303,0.15,83789.0,83738.0,0.011942]
[1743432635304,0.58929281,83751.0,83750.0,0.250745]
[1743432635536,0.58929281,83751.0,83750.0,1.46200779]
[1743432635537,0.58456942,83751.0,83750.0,1.46200779]
[1743432635763,0.4134,83788.0,83784.0,0.011935]
[1743432635997,0.4154,83829.0,83784.0,2.87042421]
[1743432636205,0.35179261,83829.0,83814.0,0.238623]
[1743432636420,0.0591691,83866.0,83814.0,0.238623]
[1743432636421,0.56607534,83860.0,83829.0,0.3]
[1743432636629,0.56607534,83860.0,83844.0,0.025]
[1743432636846,0.66402287,83860.0,83838.0,1.21074445]
[1743432637049,0.66402287,83860.0,83832.0,0.23857]
[1743432637050,0.00046625,83841.0,83832.0,0.23857]
[1743432637257,2.5e-07,83841.0,83840.0,0.43953086]
[1743432637469,0.0075303,83868.0,83867.0,0.005]
[1743432637672,0.2106503,83868.0,83867.0,0.12760386]
[1743432637874,0.0075303,83868.0,83867.0,0.12760386]
[1743432638081,0.3263073,83868.0,83867.0,0.12760386]
[1743432638290,0.10975114,83868.0,83867.0,0.12660386]
[1743432638499,0.85799014,83868.0,83867.0,0.12660386]
[1743432638773,0.85799014,83868.0,83836.0,0.011928]
[1743432638774,0.025,83855.0,83812.0,0.011931]
[1743432639001,0.025,83843.0,83787.0,0.4086]
[1743432639202,0.3,83859.0,83764.0,0.005]
[1743432639203,0.025,83800.0,83764.0,0.005]
[1743432639427,0.025,83841.0,83814.0,0.011931]
[1743432639428,0.21304,83815.0,83814.0,0.011931]
[1743432639646,0.22276,83815.0,83814.0,0.12260386]
[1743432639880,0.025,83805.0,83786.0,0.00238596]
[1743432640085,0.025,83805.0,83734.0,0.1]
[1743432640086,0.005,83824.0,83783.0,1.19355]
[1743432640296,0.005,83822.0,83808.0,0.011932]
[1743432640502,0.025,83845.0,83763.0,0.6918]
[1743432640503,0.005,83799.0,83788.0,0.011934]
[1743432640725,0.22312,83806.0,83803.0,0.011932]
[1743432640928,0.62068,83807.0,83784.0,0.12260386]
[1743432640929,0.22312,83805.0,83784.0,0.12260386]
[1743432641150,0.22312,83805.0,83802.0,0.238655]
[1743432641356,0.001,83800.0,83798.0,0.10258545]
[1743432641566,0.005,83799.0,83798.0,0.10258545]
[1743432642409,0.005,83799.0,83798.0,0.11145758]
[1743432642602,0.005,83799.0,83798.0,0.00887213]
[1743432642806,0.005,83788.0,83787.0,0.2387]
[1743432643010,0.005,83788.0,83776.0,0.011936]
[1743432643011,0.005,83782.0,83754.0,1.21126279]
[1743432643215,0.005,83770.0,83764.0,0.12260386]
[1743432643440,0.77735733,83800.0,83769.0,0.238751]
[1743432643441,0.005,83771.0,83769.0,0.238751]
[1743432643642,0.22852,83770.0,83769.0,0.238751]
[1743432643855,0.22844,83770.0,83769.0,0.238751]
[1743432644034,0.005,83770.0,83769.0,0.238751]
[1743432644239,0.2286,83770.0,83767.0,0.238756]
[1743432644456,0.2286,83770.0,83736.0,0.2258514]
[1743432644457,0.005,83758.0,83748.0,0.01194]
[1743432644676,0.005,83756.0,83749.0,0.12260386]
[1743432644877,0.6202,83757.0,83755.0,0.238791]
[1743432645029,0.6202,83757.0,83756.0,0.13454286]
[1743432646004,0.001,83758.0,83757.0,0.550725]
[1743432646238,0.001,83758.0,83757.0,1.07332886]
[1743432646465,0.001,83758.0,83757.0,1.07232886]
[1743432647850,0.00013955,83770.0,83757.0,1.07232886]
[1743432647851,0.00013955,83770.0,83769.0,0.550688]
[1743432648063,5.5e-07,83770.0,83769.0,1.88255465]
[1743432648289,0.037873,83829.0,83774.0,0.025]
[1743432648290,0.005,83812.0,83774.0,0.025]
[1743432648488,0.00013919,83804.0,83803.0,0.250584]
[1743432648693,0.00013919,83804.0,83803.0,0.37318786]
[1743432648896,1.9e-07,83804.0,83803.0,1.88193231]
[1743432649096,0.002,83829.0,83828.0,0.250512]
[1743432649301,0.002,83829.0,83828.0,0.37311586]
[1743432649505,0.002,83829.0,83828.0,0.12260386]
[1743432649704,0.002,83829.0,83828.0,0.13353286]
[1743432650345,0.002,83829.0,83828.0,0.4413663]
[1743432650553,0.002,83829.0,83828.0,0.45039731]
[1743432651086,0.002,83829.0,83828.0,0.15039731]
[1743432651315,0.003,83829.0,83828.0,0.15439731]
[1743432651514,0.003,83829.0,83828.0,0.3839493]
[1743432651694,0.003,83829.0,83828.0,0.3928099]
[1743432652294,0.0001684,83842.0,83841.0,0.250473]
[1743432652504,0.0001684,83842.0,83841.0,0.38069097]
[1743432652705,0.0001684,83842.0,83841.0,0.68069097]
[1743432653130,0.0001684,83842.0,83841.0,1.08929097]
[1743432653347,0.0001684,83842.0,83841.0,1.48929097]
[1743432653544,0.00030756,83842.0,83841.0,1.48929097]
[1743432653887,0.00020792,83842.0,83841.0,1.49529097]
[1743432654092,0.00020792,83842.0,83841.0,1.39259097]
[1743432654296,0.00020792,83842.0,83841.0,0.53120386]
[1743432654500,0.00020792,83842.0,83841.0,0.78799355]
[1743432654708,0.00120792,83842.0,83841.0,1.61019719]
[1743432654910,0.00120792,83842.0,83841.0,1.59565634]
[1743432655111,0.0075303,83868.0,83853.0,0.250437]
[1743432655313,0.0075303,83868.0,83853.0,1.98330365]
[1743432655505,0.0075303,83868.0,83853.0,1.98230365]
[1743432655715,0.0075303,83868.0,83853.0,1.98859653]
[1743432656128,0.0075303,83868.0,83867.0,0.250395]
[1743432656343,0.002,83889.0,83867.0,0.250395]
[1743432656344,3e-07,83870.0,83869.0,0.25039]
[1743432656559,3e-07,83870.0,83869.0,0.38753471]
[1743432656751,3e-07,83870.0,83869.0,0.37547012]
[1743432656992,3e-07,83870.0,83869.0,0.37285227]
[1743432657204,3e-07,83870.0,83869.0,0.12883927]
[1743432657412,3e-07,83870.0,83869.0,0.00523541]
[1743432657619,3e-07,83870.0,83869.0,0.12783927]
[1743432657824,3e-07,83870.0,83855.0,0.011925]
[1743432657954,0.0050003,83870.0,83869.0,0.00493473]
[1743432658159,0.005,83857.0,83853.0,0.01024357]
[1743432658379,0.005,83857.0,83854.0,0.011925]
[1743432658728,0.0010003,83870.0,83863.0,0.011924]
[1743432658936,0.005,83867.0,83864.0,0.25278843]
[1743432659127,0.005,83867.0,83860.0,0.250413]
[1743432659338,0.001,83868.0,83861.0,0.12260386]
[1743432659539,0.005,83869.0,83861.0,0.12260386]
[1743432659741,0.005,83869.0,83861.0,0.238488]
[1743432659952,0.005,83863.0,83862.0,0.00238438]
[1743432660220,0.005,83863.0,83855.0,0.00238454]
[1743432660479,0.005,83854.0,83841.0,0.011927]
[1743432660709,0.005,83842.0,83840.0,0.06885736]
[1743432660933,0.005,83842.0,83840.0,0.06693732]
[1743432661115,0.005,83841.0,83840.0,0.06693732]
[1743432661846,0.005,83816.0,83795.0,0.011933]
[1743432662055,0.005,83816.0,83772.0,0.502483]
[1743432662056,0.005,83798.0,83788.0,0.011934]